bitfinex-derivatives/quotes_SOLF0:USTF0_20220106
["timestamp","ask_amount","ask_price","bid_price","bid_amount"]
[1641474565343,34.35017575,149.5,149.43,4.73227432]
[1641474565644,34.35017575,149.5,149.45,1.70157864]
[1641474566045,27.66479,149.5,149.45,1.70157864]
[1641474566243,27.66479,149.5,149.43,8.73227432]
[1641474566443,99.69835857,149.53,149.43,4.73227432]
[1641474566745,99.69835857,149.53,149.47,1.70157864]
[1641474567146,34.34905857,149.53,149.48,1.70157864]
[1641474567346,27.66479,149.53,149.48,5.888]
[1641474567645,27.66479,149.57,149.52,1.70157864]
[1641474567845,27.66479,149.57,149.52,4.889]
[1641474568046,16.93412146,149.56,149.55,1.70157864]
[1641474568746,27.66479,149.57,149.55,1.70157864]
[1641474568948,74.08460361,149.63,149.48,5.888]
[1641474569146,4.0,149.61,149.48,5.888]
[1641474569346,4.0,149.61,149.53,27.66479]
[1641474569751,27.66479,149.62,149.53,27.66479]
[1641474569953,4.0,149.61,149.53,27.66479]
[1641474570152,27.66479,149.62,149.53,27.66479]
[1641474570953,4.0,149.61,149.53,27.66479]
[1641474571253,27.66479,149.62,149.53,27.66479]
[1641474571853,4.68871272,149.61,149.57,20.0]
[1641474572056,56.58660819,149.72,149.6,26.67356268]
[1641474572253,56.58660819,149.72,149.6,33.87156268]
[1641474572460,56.58660819,149.72,149.6,27.198]
[1641474572656,56.58660819,149.72,149.6,7.198]
[1641474573061,4.0,149.68,149.6,7.198]
[1641474573257,4.0,149.68,149.62,27.66479]
[1641474573457,10.67735043,149.68,149.62,27.66479]
[1641474573657,6.67735043,149.68,149.6,27.66479]
[1641474573858,4.0,149.67,149.6,27.66479]
[1641474574357,4.0,149.66,149.6,27.66479]
[1641474575357,10.67846529,149.66,149.6,27.66479]
[1641474575558,4.0,149.61,149.56,27.66479]
[1641474575758,10.517,149.61,149.56,27.66479]
[1641474576159,6.517,149.61,149.56,27.66479]
[1641474576459,6.517,149.61,149.5,63.2266]
[1641474576460,4.0,149.58,149.5,63.2266]
[1641474576658,11.124,149.58,149.47,37.49760519]
[1641474576858,11.124,149.58,149.46,10.02]
[1641474577058,7.124,149.58,149.46,10.02]
[1641474577259,7.124,149.58,149.45,6.68002672]
[1641474577459,4.0,149.56,149.48,27.66479]
[1641474577660,41.47060211,149.58,149.48,27.66479]
[1641474577859,41.47060211,149.58,149.45,6.95922513]
[1641474578059,6.68382181,149.54,149.45,6.95922513]
[1641474578259,17.37682181,149.54,149.45,6.95922513]
[1641474578459,4.0,149.49,149.45,6.95922513]
[1641474578658,4.0,149.48,149.39,37.49760519]
[1641474578859,7.114,149.49,149.39,37.49760519]
[1641474579460,7.114,149.49,149.41,27.66479]
[1641474579661,4.0,149.51,149.41,27.66479]
[1641474580763,6.68382181,149.54,149.41,33.08579]
[1641474580969,52.42007223,149.58,149.41,53.84107223]
[1641474581465,4.0,149.56,149.48,27.66479]
[1641474581664,48.42007223,149.58,149.48,7.261]
[1641474581864,4.0,149.54,149.48,7.261]
[1641474582064,34.34682535,149.58,149.48,7.261]
[1641474582466,4.0,149.54,149.48,7.261]
[1641474582763,4.0,149.54,149.45,14.07324688]
[1641474582965,34.34682535,149.58,149.42,107.15183431]
[1641474582966,4.0,149.49,149.44,14.07324688]
[1641474583166,4.0,149.48,149.44,14.07324688]
[1641474583365,4.0,149.49,149.44,14.07324688]
[1641474583566,4.0,149.48,149.44,14.07324688]
[1641474583767,32.30079,149.5,149.41,79.23564207]
[1641474583969,4.636,149.5,149.41,41.73803688]
[1641474584267,4.0,149.49,149.41,41.73803688]
[1641474584867,10.6833751,149.55,149.41,27.66479]
[1641474585071,4.0,149.48,149.41,27.66479]
[1641474585267,4.0,149.47,149.41,27.66479]
[1641474585470,6.798,149.48,149.41,27.66479]
[1641474585768,4.0,149.49,149.41,27.66479]
[1641474585968,4.0,149.48,149.41,27.66479]
[1641474586368,4.564,149.48,149.41,27.66479]
[1641474586568,4.0,149.42,149.41,41.73803688]
[1641474586769,8.804,149.42,149.41,14.07324688]
[1641474586969,4.804,149.42,149.41,14.07324688]
[1641474587171,8.804,149.42,149.41,14.07324688]
[1641474587771,34.35017575,149.5,149.39,18.07324688]
[1641474587972,27.66479,149.5,149.39,19.04624688]
[1641474588171,27.66479,149.5,149.41,4.0]
[1641474588372,20.75617534,149.56,149.42,4.0]
[1641474588572,20.75617534,149.56,149.42,10.794]
[1641474588772,4.0,149.55,149.42,6.794]
[1641474588972,6.68292846,149.56,149.42,6.794]
[1641474589172,6.68292846,149.56,149.42,10.794]
[1641474589372,27.66479,149.54,149.45,27.66479]
[1641474590375,27.66479,149.54,149.44,14.07324688]
[1641474590774,4.0,149.5,149.46,1.43742956]
[1641474590984,10.519,149.5,149.46,1.43742956]
[1641474591374,4.0,149.49,149.46,1.43742956]
[1641474591574,59.32958,149.47,149.43,14.07324688]
[1641474591774,60.71258,149.47,149.41,22.47078128]
[1641474591975,4.0,149.46,149.41,22.47078128]
[1641474592175,60.71258,149.47,149.41,22.47078128]
[1641474592374,4.0,149.46,149.41,22.47078128]
[1641474592776,4.0,149.42,149.41,14.07324688]
[1641474592974,5.156,149.42,149.36,14.07324688]
[1641474594177,27.66479,149.47,149.34,6.68516228]
[1641474594376,27.66479,149.47,149.34,12.34416228]
[1641474594577,27.66479,149.47,149.36,4.0]
[1641474594877,27.66479,149.47,149.35,4.0]
[1641474595381,27.66479,149.47,149.37,18.07324688]
[1641474595576,27.66479,149.47,149.38,27.66479]
[1641474595777,27.66479,149.47,149.37,14.07324688]
[1641474595778,34.35151685,149.47,149.37,14.07324688]
[1641474595976,39.69051685,149.47,149.37,14.07324688]
[1641474596577,4.0,149.46,149.37,14.07324688]
[1641474596776,4.0,149.46,149.32,27.66479]
[1641474596777,4.0,149.44,149.32,41.73803688]
[1641474597377,10.338,149.44,149.32,41.73803688]
[1641474597577,27.66479,149.41,149.32,41.73803688]
[1641474597778,27.66479,149.41,149.33,21.0141912]
[1641474598780,4.0,149.4,149.33,21.0141912]
[1641474598978,5.996,149.4,149.33,21.0141912]
[1641474599580,27.66479,149.37,149.33,21.0141912]
[1641474599777,27.66479,149.37,149.27,27.66479]
[1641474599778,27.66479,149.37,149.34,14.07324688]
[1641474600178,4.0,149.36,149.34,14.07324688]
[1641474600378,4.828,149.36,149.34,14.07324688]
[1641474600581,4.828,149.36,149.35,14.07324688]
[1641474601381,4.828,149.36,149.32,37.49760519]
[1641474601579,27.66479,149.34,149.32,37.49760519]
[1641474602381,27.66479,149.34,149.31,37.49760519]
[1641474602982,33.28579,149.34,149.31,37.49760519]
[1641474603386,37.28579,149.34,149.31,37.49760519]
[1641474603584,27.66479,149.33,149.31,37.49760519]
[1641474603984,4.0,149.32,149.31,37.49760519]
[1641474604184,4.0,149.32,149.26,56.58660819]
[1641474604185,31.66479,149.33,149.26,56.58660819]
[1641474604384,4.0,149.32,149.26,56.58660819]
[1641474604885,4.0,149.28,149.26,56.58660819]
[1641474605085,4.0,149.27,149.26,56.58660819]
[1641474605285,4.0,149.27,149.25,18.38214123]
[1641474605286,4.0,149.27,149.25,11.44119691]
[1641474605486,59.32958,149.26,149.23,31.58660819]
[1641474605688,4.0,149.24,149.23,31.58660819]
[1641474605887,11.065,149.24,149.23,31.58660819]
[1641474606086,11.065,149.24,149.16,56.82319194]
[1641474606988,4.0,149.23,149.16,56.82319194]
[1641474607189,4.0,149.23,149.12,110.50787164]
[1641474607388,4.0,149.22,149.12,15.98073391]
[1641474607590,27.66479,149.16,149.12,15.98073391]
[1641474607792,32.80079,149.16,149.12,15.98073391]
[1641474608191,5.136,149.16,149.12,15.98073391]
[1641474608390,5.136,149.16,149.1,15.98073391]
[1641474609394,5.136,149.16,149.09,27.66479]
[1641474609593,32.80079,149.16,149.09,27.66479]
[1641474610198,32.80079,149.16,149.08,94.52713773]
[1641474610398,32.80079,149.16,149.07,94.52713773]
[1641474611197,32.80079,149.16,149.06,138.17266164]
[1641474611398,4.0,149.13,149.06,138.17266164]
[1641474611597,27.66479,149.11,149.06,110.50787164]
[1641474612397,31.66479,149.11,149.06,110.50787164]
[1641474612797,27.66479,149.11,149.06,15.98073391]
[1641474613003,31.66479,149.11,149.06,15.98073391]
[1641474613398,27.66479,149.11,149.06,15.98073391]
[1641474613597,27.66479,149.07,149.06,15.98073391]
[1641474613799,32.64779,149.07,149.06,15.98073391]
[1641474613997,32.64779,149.07,149.01,15.98073391]
[1641474614800,74.88809,149.15,149.02,4.0]
[1641474614998,75.54791861,149.18,149.02,9.564]
[1641474615199,71.54791861,149.18,149.03,4.0]
[1641474615601,27.66479,149.13,149.05,27.66479]
[1641474615802,27.66479,149.13,149.05,33.65979]
[1641474616003,27.66479,149.13,149.05,128.18692773]
[1641474616604,27.66479,149.15,149.05,128.18692773]
[1641474617303,27.66479,149.15,149.05,132.18692773]
[1641474617505,27.66479,149.15,149.1,56.84973854]
[1641474617906,92.51299,149.18,149.1,61.62673854]
[1641474618106,10.69747505,149.23,149.1,61.62673854]
[1641474618306,6.69747505,149.23,149.11,60.84973854]
[1641474618511,6.69747505,149.23,149.11,56.84973854]
[1641474619111,6.69747505,149.23,149.15,56.84973854]
[1641474619311,10.69747505,149.23,149.15,56.84973854]
[1641474619511,27.66479,149.2,149.15,56.84973854]
[1641474620112,27.66479,149.2,149.1,94.52713773]
[1641474620113,27.66479,149.2,149.14,56.84973854]
[1641474620811,27.66479,149.2,149.13,56.84973854]
[1641474621514,60.55858,149.2,149.14,56.84973854]
[1641474621914,4.0,149.17,149.14,56.84973854]
[1641474622114,9.865,149.17,149.14,56.84973854]
[1641474622313,5.865,149.17,149.14,56.84973854]
[1641474622916,5.865,149.17,149.12,56.84973854]
[1641474623516,62.02862539,149.2,149.09,102.93364721]
[1641474624215,66.02862539,149.2,149.09,102.93364721]
[1641474624415,66.02862539,149.2,149.1,63.8458751]
[1641474624616,62.02862539,149.2,149.1,63.8458751]
[1641474625315,62.02862539,149.2,149.15,37.89235594]
[1641474625517,27.66479,149.17,149.15,37.89235594]
[1641474626617,27.66479,149.2,149.15,37.89235594]
[1641474626817,27.66479,149.2,149.15,44.75935594]
[1641474627018,7.038,149.23,149.15,44.75935594]
[1641474627719,7.038,149.23,149.17,37.89235594]
[1641474627720,27.66479,149.2,149.17,37.89235594]
[1641474628519,27.66479,149.2,149.16,37.89235594]
[1641474629919,20.08694998,149.2,149.16,37.89235594]
[1641474630720,20.08694998,149.2,149.17,37.89235594]
[1641474630920,6.69590545,149.27,149.17,43.13935594]
[1641474631121,4.0,149.29,149.17,43.13935594]
[1641474631122,6.69500887,149.29,149.17,43.13935594]
[1641474631324,6.69545713,149.28,149.17,43.13935594]
[1641474631721,6.69702652,149.24,149.23,14.20581145]
[1641474632022,6.69702652,149.24,149.19,37.89235594]
[1641474632023,10.69702652,149.24,149.19,37.89235594]
[1641474632321,4.0,149.22,149.19,37.89235594]
[1641474632721,4.0,149.21,149.15,37.89235594]
[1641474633121,4.0,149.22,149.15,37.89235594]
[1641474633421,4.73684243,149.21,149.14,37.89235594]
[1641474633622,32.40163243,149.21,149.14,37.89235594]
[1641474634022,4.0,149.2,149.14,37.89235594]
[1641474634222,4.0,149.19,149.14,37.89235594]
[1641474634422,6.69904539,149.2,149.14,37.89235594]
[1641474634623,10.69904539,149.2,149.14,37.89235594]
[1641474634823,4.0,149.19,149.14,37.89235594]
[1641474635023,6.69904539,149.2,149.13,37.89235594]
[1641474635424,4.0,149.18,149.13,37.89235594]
[1641474635623,27.66479,149.18,149.12,37.89235594]
[1641474636125,4.0,149.17,149.12,37.89235594]
[1641474636326,31.66479,149.18,149.12,37.89235594]
[1641474636728,4.0,149.15,149.12,37.89235594]
[1641474637626,27.66479,149.13,149.12,37.89235594]
[1641474637827,31.66479,149.13,149.12,37.89235594]
[1641474638026,31.66479,149.13,149.1,8.43460952]
[1641474638226,27.66479,149.13,149.1,8.43460952]
[1641474638426,27.66479,149.13,149.09,37.9074403]
[1641474639126,27.66479,149.13,149.05,56.84973854]
[1641474639327,27.66479,149.13,149.05,19.85759163]
[1641474639729,27.66479,149.1,149.05,19.85759163]
[1641474640331,27.66479,149.1,149.05,8.43460952]
[1641474641932,27.66479,149.1,149.02,65.28434806]
[1641474643433,27.66479,149.1,149.03,56.84973854]
[1641474644135,27.66479,149.1,149.02,65.28434806]
[1641474645334,31.66479,149.1,149.02,65.28434806]
[1641474645835,27.66479,149.07,149.02,65.28434806]
[1641474646034,32.88679,149.07,149.02,65.28434806]
[1641474646835,6.70623344,149.04,149.02,63.8458751]
[1641474647036,4.0,149.03,149.02,7.87354806]
[1641474647437,10.70623344,149.04,149.03,1.43498167]
[1641474647638,6.70623344,149.04,149.03,1.43498167]
[1641474647839,39.59144974,149.07,149.03,1.43498167]
[1641474648038,34.36944974,149.07,149.03,1.43498167]
[1641474648737,34.36944974,149.07,149.0,11.42298211]
[1641474649139,34.36944974,149.07,148.97,27.66479]
[1641474649338,34.36944974,149.07,148.97,31.66479]
[1641474649939,6.70465974,149.07,149.0,27.66479]
[1641474650337,6.70465974,149.07,148.95,11.42298211]
[1641474650737,6.70465974,149.07,148.95,15.42298211]
[1641474650937,4.0,149.05,148.95,11.42298211]
[1641474651138,6.70465974,149.07,148.95,4.0]
[1641474651939,27.66479,149.05,148.95,31.66479]
[1641474652739,6.70600858,149.04,148.95,27.66479]
[1641474653140,10.70600858,149.04,148.94,27.39706892]
[1641474653739,6.70600858,149.04,148.94,27.39706892]
[1641474653943,27.66479,149.02,148.94,27.39706892]
[1641474654147,6.70600858,149.04,148.94,31.39706892]
[1641474654341,6.70600858,149.04,148.94,32.95406892]
[1641474654540,6.70600858,149.04,148.94,36.95406892]
[1641474654741,6.70600858,149.04,148.96,4.0]
[1641474654945,6.70600858,149.04,148.95,4.0]
[1641474655144,6.70600858,149.04,148.96,4.0]
[1641474655545,27.66479,149.05,148.96,4.0]
[1641474656346,27.66479,149.05,148.94,5.557]
[1641474657347,27.66479,149.05,148.96,4.0]
[1641474657546,27.66479,149.05,148.97,56.89285048]
[1641474658348,6.70623344,149.04,149.01,37.92922522]
[1641474659148,6.70623344,149.04,149.0,37.92922522]
[1641474660050,27.66479,149.01,149.0,37.92922522]
[1641474660652,6.70623344,149.04,149.0,37.92922522]
[1641474660854,27.66479,149.05,149.0,37.92922522]
[1641474661152,27.66479,149.05,148.99,37.92922522]
[1641474661355,11.44172694,149.07,148.99,37.92922522]
[1641474661754,11.44172694,149.07,148.98,5.732]
[1641474661755,6.70488451,149.07,149.01,37.92922522]
[1641474662156,34.36967451,149.07,149.01,37.92922522]
[1641474662557,34.36967451,149.07,149.04,14.22310813]
[1641474662956,34.36967451,149.07,149.04,2.92213059]
[1641474663156,34.36967451,149.07,149.01,37.92922522]
[1641474663357,4.0,149.05,149.0,37.92922522]
[1641474663557,6.70668321,149.03,149.0,37.92922522]
[1641474664257,34.37147321,149.03,148.98,37.92922522]
[1641474665257,38.37147321,149.03,148.98,37.92922522]
[1641474665558,6.70780789,149.0,148.98,37.92922522]
[1641474665756,6.70780789,149.0,148.97,37.92922522]
[1641474666159,55.32958,148.98,148.97,37.92922522]
[1641474666557,55.32958,148.98,148.95,37.92922522]
[1641474666757,27.66479,148.98,148.95,37.92922522]
[1641474666957,6.70780789,149.0,148.95,37.92922522]
[1641474668063,6.71231038,148.96,148.95,37.92922522]
[1641474668263,62.04189038,148.96,148.9,75.29330852]
[1641474668763,62.04189038,148.96,148.91,56.89285048]
[1641474670064,62.04189038,148.96,148.89,15.96170334]
[1641474670065,66.77873281,148.96,148.87,6.97747593]
[1641474670665,11.44915281,148.96,148.89,4.0]
[1641474670865,6.70803287,149.0,148.88,4.0]
[1641474671168,6.70803287,149.0,148.89,4.0]
[1641474671366,6.70803287,149.0,148.86,104.82719]
[1641474671567,6.70803287,149.0,148.87,4.0]
[1641474672168,6.70803287,149.0,148.89,27.66479]
[1641474672768,6.709158,148.97,148.86,100.82719]
[1641474672967,11.195158,148.97,148.86,100.82719]
[1641474673167,11.195158,148.97,148.86,104.82719]
[1641474674268,27.66479,148.95,148.87,91.23492377]
[1641474676172,72.22734243,148.99,148.9,27.66479]
[1641474676570,6.70803287,149.0,148.91,6.97525246]
[1641474678273,11.4448753,149.0,148.91,6.97525246]
[1641474678873,11.4448753,149.0,148.92,4.0]
[1641474679076,6.70803287,149.0,148.91,6.97525246]
[1641474679274,6.70803287,149.0,148.91,10.97525246]
[1641474679474,32.40163243,149.01,148.91,6.97525246]
[1641474679679,4.73684243,149.01,148.91,10.97525246]
[1641474679875,4.73684243,149.02,148.94,4.0]
[1641474680077,4.73684243,149.02,148.94,4.57]
[1641474680276,4.73684243,149.02,148.95,27.66479]
[1641474680477,4.73684243,149.02,148.95,31.66479]
[1641474680677,6.70668321,149.03,148.95,31.66479]
[1641474681381,6.70668321,149.03,148.96,6.97525246]
[1641474682379,6.70668321,149.03,148.96,4.0]
[1641474682779,6.70668321,149.03,148.95,38.89879]
[1641474683180,6.70668321,149.03,148.96,4.0]
[1641474683582,6.70668321,149.03,148.95,38.89879]
[1641474684381,6.70668321,149.03,148.96,18.38036995]
[1641474684883,6.70668321,149.03,148.95,38.89879]
[1641474685083,6.70668321,149.03,148.98,4.68758938]
[1641474685283,6.70668321,149.03,148.98,10.71358938]
[1641474685784,27.66479,149.04,148.98,10.71358938]
[1641474686283,27.66479,149.04,148.98,14.71358938]
[1641474686683,27.66479,149.04,149.01,4.0]
[1641474686884,27.66479,149.04,149.02,4.0]
[1641474687084,27.66479,149.07,149.02,4.0]
[1641474687486,6.70241287,149.12,149.01,6.311]
[1641474687784,4.73684243,149.13,149.06,4.0]
[1641474687987,11.4379079,149.15,149.06,10.578]
[1641474688587,11.4379079,149.15,149.07,27.66479]
[1641474689288,6.70106547,149.15,149.07,27.66479]
[1641474689689,6.70106547,149.15,149.08,4.0]
[1641474690390,4.73684243,149.21,149.14,4.0]
[1641474690591,4.73684243,149.21,149.16,27.66479]
[1641474690792,4.73684243,149.21,149.14,6.682]
[1641474691793,8.73684243,149.21,149.13,27.66479]
[1641474691993,6.69994305,149.19,149.07,4.68758938]
[1641474692597,6.69994305,149.19,149.1,27.66479]
[1641474692794,71.34434243,149.2,149.1,27.66479]
[1641474693394,66.6075,149.2,149.1,27.66479]
[1641474694196,66.6075,149.2,149.1,31.66479]
[1641474694395,66.6075,149.2,149.11,4.0]
[1641474694597,6.69904539,149.21,149.13,27.66479]
[1641474694797,6.69904539,149.21,149.13,32.29779]
[1641474697603,31.53302397,149.24,149.16,4.0]
[1641474697604,4.73684243,149.24,149.16,4.0]
[1641474697804,4.73684243,149.24,149.2,4.0]
[1641474698008,4.73684243,149.24,149.2,10.87]
[1641474698207,4.73684243,149.28,149.2,10.87]
[1641474698603,4.73684243,149.28,149.22,27.66479]
[1641474699807,4.73684243,149.3,149.22,27.66479]
[1641474700409,4.73684243,149.3,149.22,31.66479]
[1641474700610,4.73684243,149.3,149.26,27.66479]
[1641474700809,14.05158682,149.28,149.26,27.66479]
[1641474701909,14.05158682,149.29,149.26,27.66479]
[1641474702811,14.05158682,149.27,149.26,27.66479]
[1641474704312,14.05158682,149.27,149.23,4.68758938]
[1641474704510,14.05158682,149.27,149.24,4.68758938]
[1641474705210,14.05158682,149.26,149.22,32.35237938]
[1641474706214,14.05158682,149.28,149.24,4.68758938]
[1641474707212,14.05158682,149.26,149.22,32.35237938]
[1641474707814,20.7483891,149.26,149.22,4.68758938]
[1641474708014,18.05158682,149.26,149.19,14.05158682]
[1641474708315,6.69814796,149.23,149.18,14.05158682]
[1641474708518,34.36293796,149.23,149.18,14.05158682]
[1641474709115,34.36293796,149.23,149.13,41.71637682]
[1641474709116,14.05158682,149.2,149.13,41.71637682]
[1641474709316,14.05158682,149.2,149.13,14.05158682]
[1641474709717,20.75108101,149.2,149.13,14.05158682]
[1641474709915,6.70151454,149.15,149.13,14.05158682]
[1641474710115,6.70151454,149.15,149.12,14.05158682]
[1641474711122,3.30612459,149.14,149.09,22.44722356]
[1641474712218,4.0,149.11,149.09,22.44722356]
[1641474712420,4.0,149.11,149.07,14.21894404]
[1641474712619,27.66479,149.1,149.07,14.21894404]
[1641474712819,31.66479,149.1,149.07,14.21894404]
[1641474713020,31.66479,149.1,149.04,48.87349913]
[1641474713218,27.66479,149.1,149.04,48.87349913]
[1641474713419,27.66479,149.1,149.04,37.48023925]
[1641474713621,27.66479,149.1,149.02,6.96540206]
[1641474714222,31.66479,149.1,149.02,6.96540206]
[1641474715021,4.0,149.07,149.02,6.96540206]
[1641474715224,6.70465974,149.08,149.02,6.96540206]
[1641474715421,6.70645832,149.04,149.02,6.96540206]
[1641474716328,6.70645832,149.04,148.97,37.48023925]
[1641474716623,27.66479,149.01,148.97,37.48023925]
[1641474716823,41.13059789,149.01,148.97,37.48023925]
[1641474717225,45.13059789,149.01,148.97,37.48023925]
[1641474717423,45.13059789,149.01,148.93,18.35459779]
[1641474717424,41.13059789,149.01,148.94,44.44564131]
[1641474718024,6.70780789,149.01,148.94,44.44564131]
[1641474718628,27.66479,149.03,148.94,44.44564131]
[1641474718823,27.66479,149.03,148.93,55.83483704]
[1641474719224,27.66479,149.03,148.94,4.0]
[1641474719424,6.70645832,149.04,148.94,4.0]
[1641474719624,6.70645832,149.04,148.97,37.48023925]
[1641474719825,34.37012409,149.07,148.97,43.31423925]
[1641474720626,34.37012409,149.07,148.98,37.48023925]
[1641474721430,4.0,149.05,148.97,44.44564131]
[1641474721630,34.37012409,149.07,148.97,44.44564131]
[1641474721830,38.37012409,149.07,148.97,44.44564131]
[1641474722029,6.70690812,149.03,148.97,44.44564131]
[1641474722729,6.70690812,149.03,148.97,6.96540206]
[1641474723932,75.37241024,149.09,148.97,6.96540206]
[1641474724133,75.37241024,149.09,148.97,11.43540206]
[1641474724531,75.37241024,149.09,149.0,37.48023925]
[1641474724732,6.70421024,149.09,149.0,37.48023925]
[1641474724932,4.0,149.08,149.0,37.48023925]
[1641474725333,4.0,149.08,149.0,44.44564131]
[1641474725532,4.0,149.06,149.0,44.44564131]
[1641474725733,4.0,149.08,149.0,44.44564131]
[1641474726032,6.70600858,149.05,149.0,44.44564131]
[1641474726432,6.70600858,149.05,148.97,44.44564131]
[1641474727442,6.70600858,149.05,148.97,6.96540206]
[1641474732237,65.14502925,149.1,149.02,4.0]
[1641474732439,6.70443498,149.09,149.02,4.0]
[1641474733139,4.0,149.07,148.98,66.5494]
[1641474733339,4.0,149.08,149.01,37.48023925]
[1641474733942,4.0,149.07,149.01,37.48023925]
[1641474734141,4.0,149.07,148.97,44.44564131]
[1641474734641,4.0,149.08,148.97,44.44564131]
[1641474735943,18.71043558,149.09,148.97,44.44564131]
[1641474736743,6.70443498,149.09,148.98,37.48023925]
[1641474736945,6.70443498,149.09,148.99,27.66479]
[1641474737746,27.66479,149.11,149.0,44.44564131]
[1641474737947,34.36810144,149.11,149.04,4.0]
[1641474738146,6.70331144,149.11,149.05,4.0]
[1641474738746,6.70331144,149.11,149.04,43.89723925]
[1641474738947,6.70331144,149.11,149.07,27.66479]
[1641474739147,6.70331144,149.11,149.04,65.14502925]
[1641474739647,6.70331144,149.11,149.04,27.66479]
[1641474740649,6.70331144,149.11,149.05,6.96266889]
[1641474742248,6.70331144,149.11,149.01,11.38797437]
[1641474742249,6.70331144,149.11,149.01,6.96266889]
[1641474743048,4.0,149.09,149.01,6.96266889]
[1641474743249,4.0,149.09,149.05,14.22106035]
[1641474743647,6.70331144,149.11,149.05,14.22106035]
[1641474744148,4.0,149.1,149.02,51.7012996]
[1641474744349,24.92437179,149.11,149.02,14.22106035]
[1641474745148,27.66479,149.09,149.02,14.22106035]
[1641474746150,27.66479,149.09,149.03,14.22106035]
[1641474746951,6.70465974,149.08,149.03,14.22106035]
[1641474748152,6.70465974,149.08,149.02,14.22106035]
[1641474749253,41.88585035,149.09,149.02,14.22106035]
[1641474749454,41.88585035,149.09,149.02,20.00406035]
[1641474749656,27.66479,149.09,149.03,14.22106035]
[1641474750455,27.66479,149.09,149.05,14.22106035]
[1641474751156,22.04083407,149.09,149.05,14.22106035]
[1641474751556,22.04083407,149.09,149.06,14.22106035]
[1641474751758,14.21950811,149.13,149.06,20.98606035]
[1641474752459,14.21950811,149.14,149.07,14.22106035]
[1641474753062,4.0,149.12,149.07,14.22106035]
[1641474753359,27.66479,149.11,149.07,1.42567539]
[1641474753759,4.0,149.08,149.07,1.42567539]
[1641474753959,6.70488451,149.08,149.06,14.22106035]
[1641474754359,6.70488451,149.08,149.04,21.18372924]
[1641474754962,10.70488451,149.08,149.04,21.18372924]
[1641474755159,10.70488451,149.08,149.04,14.22106035]
[1641474755360,24.92439262,149.08,149.03,27.66479]
[1641474755960,20.92439262,149.08,149.03,27.66479]
[1641474757160,6.70488451,149.08,149.03,27.66479]
[1641474758161,14.21950811,149.09,149.03,27.66479]
[1641474758861,14.21950811,149.1,149.03,41.88585035]
[1641474759965,14.21950811,149.1,149.03,27.66479]
[1641474760563,18.21950811,149.1,149.03,27.66479]
[1641474760763,14.21950811,149.09,149.03,27.66479]
[1641474763364,14.21950811,149.09,149.03,31.66479]
[1641474763564,14.21950811,149.09,149.03,27.66479]
[1641474764665,14.21950811,149.12,149.05,14.22106035]
[1641474764866,14.21950811,149.12,149.05,19.69006035]
[1641474765464,14.21950811,149.12,149.06,27.66479]
[1641474765865,14.21950811,149.11,149.06,27.66479]
[1641474766766,14.21950811,149.13,149.06,41.88585035]
[1641474768366,14.21950811,149.12,149.09,4.74004954]
[1641474768566,14.21950811,149.12,149.09,10.84104954]
[1641474769368,14.21950811,149.15,149.11,4.74004954]
[1641474769666,14.21950811,149.15,149.11,60.06962954]
[1641474770468,66.2585,149.19,149.11,55.32958]
[1641474771271,10.70039197,149.18,149.08,4.74004954]
[1641474771469,27.66479,149.17,149.08,4.74004954]
[1641474771869,27.66479,149.17,149.09,4.74004954]
[1641474772269,6.70039197,149.18,149.09,4.74004954]
[1641474772971,10.70039197,149.18,149.09,4.74004954]
[1641474773170,10.70039197,149.18,149.07,96.03903954]
[1641474773470,10.70039197,149.18,149.1,27.66479]
[1641474774172,14.21950811,149.14,149.1,39.01883954]
[1641474775474,0.74650811,149.14,149.1,39.01883954]
[1641474776074,11.99569338,149.18,149.12,4.74004954]
[1641474777074,49.47593263,149.18,149.11,4.74004954]
[1641474778777,49.47593263,149.18,149.1,36.40483954]
[1641474779477,49.47593263,149.18,149.12,4.74004954]
[1641474779478,11.99569338,149.18,149.12,4.74004954]
[1641474779677,11.99569338,149.18,149.14,27.66479]
[1641474780279,56.17497802,149.21,149.14,32.40483954]
[1641474781280,37.48023925,149.2,149.14,27.66479]
[1641474782080,18.69473877,149.21,149.14,32.40483954]